fUST/lending_fUST_20260219
["ID","MTS","AMOUNT","RATE_DAILY","PERIOD"]
[405984713,1771495847883,-315.17787081,0.00020143,2]
[405984714,1771495847893,-630.0,0.00020184,2]
[405984715,1771495847902,-166.0,0.00020184,2]
[405984716,1771495847911,-630.0,0.00020184,2]
[405984717,1771495847920,-166.0,0.00020184,2]
[405984718,1771495847929,-630.0,0.00020184,2]
[405984719,1771495847938,-574.04362044,0.00020184,2]
[405984720,1771495848047,-55.95637956,0.00020184,2]
[405984721,1771495848057,-630.0,0.00020184,2]
[405984722,1771495848066,-350.0,0.00020184,2]
[405984723,1771495848075,-630.0,0.00020184,2]
[405984724,1771495848085,-350.0,0.00020184,2]
[405984725,1771495848094,-166.0,0.00020184,2]
[405984726,1771495848103,-531.02147176,0.00020184,2]
[405984727,1771495848118,-98.97852824,0.00020184,2]
[405984728,1771495848127,-350.0,0.00020184,2]
[405984729,1771495848136,-166.0,0.00020184,2]
[405984730,1771495848145,-274.96014264,0.00020184,2]
[405984737,1771496840113,-3430.26882736,0.00012879,2]
[405984738,1771496840132,-500.0,0.00013273,2]
[405984739,1771496840150,-466.78944837,0.00013273,2]
[405984740,1771496840169,-477.88579833,0.00013273,2]
[405984741,1771496840188,-1000.0,0.00013821,2]
[405984742,1771496840206,-300.0,0.00014367,2]
[405984743,1771496840224,-1500.0,0.00014368,2]
[405984744,1771496840243,-1500.0,0.00014916,2]
[405984745,1771496840260,-272.32249331,0.00015977,2]
[405984746,1771496840280,-500.0,0.00017869,2]
[405984747,1771496840299,-510.35818167,0.00018471,7]
[405984748,1771496840318,-2548.01127302,0.00018566,7]
[405984749,1771496840337,-312.94762985,0.00019978,2]
[405984750,1771496840358,-650.16388476,0.00019978,2]
[405984751,1771496840379,-1170.29499258,0.00019978,2]
[405984752,1771496840399,-2080.52443124,0.00019978,2]
[405984753,1771496840421,-3250.81942382,0.00019978,2]
[405984754,1771496840440,-1057.03,0.00019999,2]
[405984755,1771496840461,-4204.83418967,0.0002,2]
[405984803,1771497031540,-5364.45972502,0.0002,2]
[405984814,1771497037635,-4138.01000028,0.0002,2]
[405984815,1771497037745,-1241.30587831,0.0002,2]
[405984816,1771497037755,-1449.82450375,0.00020072,2]
[405984817,1771497037764,-500.0,0.00020171,2]
[405984818,1771497037773,-1057.03,0.00020171,2]
[405984819,1771497037783,-500.0,0.00020172,2]
[405984820,1771497037792,-500.0,0.00020172,2]
[405984821,1771497037801,-500.0,0.00020172,2]
[405984822,1771497037810,-500.0,0.00020172,2]
[405984823,1771497037819,-500.0,0.00020172,2]
[405984824,1771497037829,-432.05914901,0.00020172,2]
[405984858,1771497045798,-2000.0,0.00019623,2]
[405984859,1771497045808,-859.13895266,0.000198,2]
[405984860,1771497045820,-670.10824922,0.000198,2]
[405984861,1771497045829,-67.94085099,0.00020172,2]
[405984862,1771497045838,-187.78006525,0.00020172,2]
[405984863,1771497045847,-194.72792766,0.00020172,2]
[405984864,1771497045857,-201.93286099,0.00020172,2]
[405984865,1771497045866,-500.0,0.00020172,2]
[405984866,1771497045875,-209.40437684,0.00020172,2]
[405984867,1771497045885,-217.15233878,0.00020172,2]
[405984868,1771497045894,-225.18697532,0.00020172,2]
[405984869,1771497045904,-233.51889341,0.00020172,2]
[405984870,1771497045914,-242.15909246,0.00020172,2]
[405984871,1771497045924,-251.11897888,0.00020172,2]
[405984872,1771497045933,-260.4103811,0.00020172,2]
[405984873,1771497045944,-500.0,0.00020172,2]
[405984874,1771497045954,-270.0455652,0.00020172,2]
[405984875,1771497045963,-500.0,0.00020172,2]
[405984876,1771497045972,-280.03725112,0.00020172,2]
[405984877,1771497045981,-500.0,0.00020172,2]
[405984878,1771497045990,-250.0,0.00020172,2]
[405984879,1771497045999,-290.39862941,0.00020172,2]
[405984880,1771497046008,-250.0,0.00020172,2]
[405984881,1771497046017,-500.0,0.00020172,2]
[405984882,1771497046026,-250.0,0.00020172,2]
[405984883,1771497046034,-301.1433787,0.00020172,2]
[405984884,1771497046043,-250.0,0.00020172,2]
[405984885,1771497046052,-500.0,0.00020172,2]
[405984886,1771497046064,-250.0,0.00020172,2]
[405984887,1771497046073,-250.0,0.00020172,2]
[405984888,1771497046082,-500.0,0.00020172,2]
[405984889,1771497046091,-250.0,0.00020172,2]
[405984890,1771497046100,-250.0,0.00020172,2]
[405984891,1771497046109,-500.0,0.00020172,2]
[405984892,1771497046118,-250.0,0.00020172,2]
[405984893,1771497046127,-261.80927597,0.00020172,2]
[405984894,1771497046136,-250.0,0.00020172,2]
[405984895,1771497046147,-250.0,0.00020172,2]
[405984896,1771497046156,-250.0,0.00020172,2]
[405984897,1771497046166,-250.0,0.00020172,2]
[405984898,1771497046175,-250.0,0.00020172,2]
[405984899,1771497046184,-137.53245037,0.00020172,2]
[405984900,1771497046200,-112.46754963,0.00020172,2]
[405984901,1771497046209,-250.0,0.00020172,2]
[405984902,1771497046218,-250.0,0.00020172,2]
[405984903,1771497046228,-250.0,0.00020172,2]
[405984904,1771497046237,-250.0,0.00020172,2]
[405984905,1771497046247,-250.0,0.00020172,2]
[405984906,1771497046256,-250.0,0.00020172,2]
[405984907,1771497046264,-250.0,0.00020172,2]
[405984908,1771497046273,-250.0,0.00020172,2]
[405984909,1771497046284,-250.0,0.00020172,2]
[405984910,1771497046293,-250.0,0.00020172,2]
[405984911,1771497046302,-250.0,0.00020172,2]
[405984912,1771497046313,-250.0,0.00020172,2]
[405984913,1771497046321,-250.0,0.00020172,2]
[405984914,1771497046331,-250.0,0.00020172,2]
[405984915,1771497046340,-250.0,0.00020172,2]
[405984916,1771497046349,-250.0,0.00020172,2]
[405984917,1771497046359,-250.0,0.00020172,2]
[405984918,1771497046368,-250.0,0.00020172,2]
[405984919,1771497046377,-250.0,0.00020172,2]
[405984920,1771497046387,-250.0,0.00020172,2]
[405984921,1771497046396,-250.0,0.00020172,2]
[405984922,1771497046406,-250.0,0.00020172,2]
[405984923,1771497046416,-250.0,0.00020172,2]
[405984924,1771497046425,-250.0,0.00020172,2]
[405984925,1771497046435,-173.29187119,0.00020172,2]
[405984926,1771497046444,-250.0,0.00020172,2]
[405984927,1771497046453,-250.0,0.00020172,2]
[405984928,1771497046462,-250.0,0.00020172,2]
[405984929,1771497046471,-250.0,0.00020172,2]
[405984930,1771497046481,-250.0,0.00020172,2]
[405984931,1771497046490,-250.0,0.00020172,2]
[405984932,1771497046500,-250.0,0.00020172,2]
[405984933,1771497046509,-151.0,0.00020172,2]
[405984934,1771497046519,-1057.03,0.00020183,2]
[405984935,1771497046528,-1057.03,0.00020183,2]
[405984936,1771497046537,-1057.03,0.00020183,2]
[405984937,1771497046546,-355.03985736,0.00020184,2]
[405984938,1771497046555,-350.0,0.00020184,2]
[405984939,1771497046565,-630.0,0.00020184,2]
[405984940,1771497046574,-350.0,0.00020184,2]
[405984941,1771497046583,-630.0,0.00020184,2]
[405984942,1771497046592,-350.0,0.00020184,2]
[405984943,1771497046602,-172.0,0.00020184,2]
[405984944,1771497046615,-350.0,0.00020184,2]
[405984945,1771497046623,-630.0,0.00020184,2]
[405984946,1771497046632,-350.0,0.00020184,2]
[405984947,1771497046641,-630.0,0.00020184,2]
[405984948,1771497046652,-350.0,0.00020184,2]
[405984949,1771497046663,-630.0,0.00020184,2]
[405984950,1771497046672,-350.0,0.00020184,2]
[405984951,1771497046683,-630.0,0.00020184,2]
[405984952,1771497046692,-350.0,0.00020184,2]
[405984953,1771497046701,-630.0,0.00020184,2]
[405984954,1771497046710,-350.0,0.00020184,2]
[405984955,1771497046719,-201.08498182,0.00020184,2]
[405984956,1771497121273,-500.0,0.00013273,2]
[405984957,1771497121317,-1000.0,0.00013821,2]
[405984983,1771498039134,-5000.0,0.0001275,2]
[405984984,1771498039155,-260.3482096,0.00012929,2]
[405984985,1771498039173,-500.0,0.00013273,2]
[405984986,1771498039192,-1000.0,0.00013821,2]
[405984987,1771498039211,-524.86244196,0.0001452,2]
[405984988,1771498039231,-1200.0,0.0001779,2]
[405984989,1771498039250,-778.09763782,0.00017791,2]
[405984990,1771498039269,-300.0,0.00018269,2]
[405984991,1771498039287,-257.8221982,0.00018271,2]
[405984992,1771498039306,-2021.8031324,0.00019126,2]
[405984993,1771498039325,-17313.44774494,0.00019126,2]
[405984994,1771498039344,-1020.77693494,0.00019423,2]
[405985021,1771498231740,-657.57509677,0.00019228,2]
[405985023,1771498231748,-271.1110639,0.00019423,2]
[405985025,1771498231758,-402.71122797,0.00020172,2]
[405985027,1771498231767,-724.88021034,0.00020172,2]
[405985029,1771498231775,-180.476,0.000203,2]
[405985031,1771498231784,-784.0,0.000204,2]
[405985033,1771498231793,-1517.3672077,0.0002048,2]
[405985034,1771498231803,-1660.31417536,0.00020561,2]
[405985036,1771498231812,-196.34619012,0.00020573,2]
[405985037,1771498231821,-500.0,0.00020573,2]
[405985038,1771498231830,-500.0,0.00020573,2]
[405985039,1771498231839,-500.0,0.00020573,2]
[405985040,1771498231848,-500.0,0.00020573,2]
[405985041,1771498231857,-500.0,0.00020573,2]
[405985042,1771498231867,-151.0,0.00020573,2]
[405985043,1771498231877,-187.78006525,0.00020573,2]
[405985044,1771498231887,-250.0,0.00020573,2]
[405985045,1771498231897,-277.60413244,0.00020573,2]
[405985046,1771498231906,-16.92330947,0.00020573,2]
[405985048,1771498237838,-483.07669053,0.00020573,2]
[405985049,1771498237848,-194.72792766,0.00020573,2]
[405985050,1771498237857,-167.64096528,0.00020573,2]
[405985051,1771498237867,-250.0,0.00020573,2]
[405985052,1771498237876,-500.0,0.00020573,2]
[405985053,1771498237886,-201.93286099,0.00020573,2]
[405985054,1771498237895,-250.0,0.00020573,2]
[405985055,1771498237909,-500.0,0.00020573,2]
[405985056,1771498237919,-209.40437684,0.00020573,2]
[405985057,1771498237931,-250.0,0.00020573,2]
[405985058,1771498237944,-500.0,0.00020573,2]
[405985059,1771498237953,-217.15233878,0.00020573,2]
[405985060,1771498237962,-250.0,0.00020573,2]
[405985061,1771498237971,-500.0,0.00020573,2]
[405985062,1771498237982,-225.18697532,0.00020573,2]
[405985063,1771498237994,-250.0,0.00020573,2]
[405985064,1771498238005,-500.0,0.00020573,2]
[405985065,1771498238015,-233.51889341,0.00020573,2]
[405985066,1771498238024,-250.0,0.00020573,2]
[405985067,1771498238033,-500.0,0.00020573,2]
[405985068,1771498238042,-242.15909246,0.00020573,2]
[405985069,1771498238051,-329.49050881,0.00020573,2]
[405985070,1771498238061,-251.11897888,0.00020573,2]
[405985071,1771498238070,-485.4058219,0.00020573,2]
[405985072,1771498238079,-260.4103811,0.00020573,2]
[405985073,1771498238088,-333.46786188,0.00020573,2]
[405985074,1771498238097,-250.0,0.00020573,2]
[405985075,1771498238107,-250.0,0.00020573,2]
[405985076,1771498238116,-250.0,0.00020573,2]
[405985077,1771498238127,-250.0,0.00020573,2]
[405985078,1771498238136,-157.55435332,0.00020573,2]
[405985079,1771498238145,-71.10840034,0.00020575,2]
[405985080,1771498238258,-829.77159966,0.00020575,2]
[405985081,1771498238267,-477.15519455,0.0002058,2]
[405985082,1771498238277,-900.88,0.00020585,2]
[405985083,1771498238286,-900.88,0.00020585,2]
[405985084,1771498238295,-900.88,0.00020585,2]
[405985085,1771498238304,-166.0,0.00020586,2]
[405985086,1771498238313,-93.45686149,0.00020586,2]
[405985332,1771498244262,-256.54313851,0.00020586,2]
[405985333,1771498244271,-153.0,0.00020586,2]
[405985334,1771498244280,-103.16758437,0.00020586,2]
[405985378,1771498919568,-1992.02724177,0.00014835,2]
[405985379,1771498919587,-1992.02724177,0.00014985,2]
[405985380,1771498919598,-52.11141903,0.00014985,2]
[405985382,1771499349129,-318.9929737,0.00014702,2]
[405985383,1771499349148,-150.0,0.00014925,2]
[405985384,1771499349168,-236.0,0.00015,2]
[405985385,1771499349186,-300.0,0.00015599,2]
[405985386,1771499349206,-129.71051221,0.00016925,2]
[405985435,1771499444510,-47.28948779,0.00016925,2]
[405985436,1771499444520,-895.40152387,0.00018552,7]
[405985437,1771499444529,-162.78577611,0.00018925,2]
[405985438,1771499444539,-500.0,0.0001904,2]
[405985439,1771499444548,-512.3363181,0.00019083,2]
[405985440,1771499444557,-923.0529774,0.00019389,2]
[405985441,1771499444566,-500.0,0.0001949,2]
[405985442,1771499444575,-1623.79880519,0.0001949,2]
[405985443,1771499444584,-515.35360251,0.00019923,2]
[405985444,1771499444594,-800.0,0.00019959,2]
[405985445,1771499444602,-538.38268993,0.00019997,2]
[405985466,1771500432134,-1610.94155748,0.00015289,2]
[405985467,1771500432154,-300.0,0.00015599,2]
[405985468,1771500432173,-151.0,0.0001743,5]
[405985469,1771500432193,-1062.0,0.0001781,2]
[405985470,1771500432213,-6703.704824,0.00017811,2]
[405985471,1771500432232,-300.0,0.00017984,2]
[405985472,1771500432251,-300.0,0.00017985,2]
[405985473,1771500432270,-300.0,0.00017985,2]
[405985474,1771500432290,-300.0,0.00017985,2]
[405985475,1771500432309,-1370.2688399,0.00017986,2]
[405985476,1771500432449,-1912.62147982,0.00018895,2]
[405985477,1771500432469,-1554.329555,0.00018961,2]
[405985478,1771500432490,-34294.7819741,0.00018961,2]
[405985479,1771500432510,-50000.0,0.00018995,2]
[405985480,1771500432530,-500.0,0.00018995,2]
[405985481,1771500432549,-500.0,0.00018995,2]
[405985482,1771500432570,-500.0,0.00018995,2]
[405985483,1771500432592,-500.0,0.00018995,2]
[405985484,1771500432615,-500.0,0.00018995,2]
[405985485,1771500432637,-500.0,0.00018995,2]
[405985486,1771500432659,-500.0,0.00018995,2]
[405985487,1771500432681,-500.0,0.00018995,2]
[405985488,1771500432704,-500.0,0.00018995,2]
[405985489,1771500432725,-500.0,0.00018995,2]
[405985490,1771500432744,-505.45409477,0.00018995,2]
[405985491,1771500432763,-623.53505689,0.00018995,2]
[405985492,1771500432784,-500.0,0.00018995,2]
[405985493,1771500432804,-460.01516899,0.00018995,2]
[405985494,1771500432825,-500.0,0.00018995,2]
[405985495,1771500432846,-500.0,0.00018995,2]
[405985496,1771500432867,-500.0,0.00018995,2]
[405985497,1771500432888,-500.0,0.00018995,2]
[405985498,1771500432910,-500.0,0.00018995,2]
[405985499,1771500432930,-500.0,0.00018995,2]
[405985500,1771500432951,-500.0,0.00018995,2]
[405985501,1771500432973,-500.0,0.00018995,2]
[405985502,1771500432994,-500.0,0.00018995,2]
[405985503,1771500433014,-500.0,0.00018995,2]
[405985504,1771500433037,-500.0,0.00018995,2]
[405985505,1771500433058,-500.0,0.00018995,2]
[405985506,1771500433078,-500.0,0.00018995,2]
[405985507,1771500433100,-500.0,0.00018995,2]
[405985508,1771500433121,-500.0,0.00018995,2]
[405985509,1771500433141,-500.0,0.00018995,2]
[405985510,1771500433162,-551.03890977,0.00018995,2]
[405985511,1771500433183,-500.0,0.00018995,2]
[405985512,1771500433204,-500.0,0.00018995,2]
[405985513,1771500433226,-500.0,0.00018995,2]
[405985514,1771500433247,-500.0,0.00018995,2]
[405985515,1771500433267,-500.0,0.00018995,2]
[405985516,1771500433287,-500.0,0.00018995,2]
[405985517,1771500433308,-500.0,0.00018995,2]
[405985518,1771500433328,-500.0,0.00018995,2]
[405985519,1771500433348,-343.72296894,0.00018995,2]
[405985520,1771500433369,-500.0,0.00018995,2]
[405985521,1771500433390,-500.0,0.00018995,2]
[405985522,1771500433410,-500.0,0.00018995,2]
[405985523,1771500433431,-500.0,0.00018995,2]
[405985524,1771500433452,-500.0,0.00018995,2]
[405985525,1771500433473,-500.0,0.00018995,2]
[405985526,1771500433494,-500.0,0.00018995,2]
[405985527,1771500433515,-500.0,0.00018995,2]
[405985528,1771500433535,-500.0,0.00018995,2]
[405985529,1771500433555,-500.0,0.00018995,2]
[405985530,1771500433577,-500.0,0.00018995,2]
[405985531,1771500433599,-500.0,0.00018995,2]
[405985532,1771500433620,-500.0,0.00018995,2]
[405985533,1771500433643,-500.0,0.00018995,2]
[405985534,1771500433664,-500.0,0.00018995,2]
[405985535,1771500433689,-500.0,0.00018995,2]
[405985536,1771500433709,-500.0,0.00018995,2]
[405985537,1771500433731,-500.0,0.00018995,2]
[405985538,1771500433754,-500.0,0.00018995,2]
[405985539,1771500433775,-500.0,0.00018995,2]
[405985540,1771500433797,-508.89099061,0.00018995,2]
[405985541,1771500433817,-500.0,0.00018995,2]
[405985542,1771500433838,-500.0,0.00018995,2]
[405985543,1771500433864,-500.0,0.00018995,2]
[405985544,1771500433888,-500.0,0.00018995,2]
[405985545,1771500433909,-500.0,0.00018995,2]
[405985546,1771500433930,-500.0,0.00018995,2]
[405985547,1771500433952,-500.0,0.00018995,2]
[405985548,1771500433972,-500.0,0.00018995,2]
[405985549,1771500433993,-500.0,0.00018995,2]
[405985550,1771500434014,-500.0,0.00018995,2]
[405985551,1771500434036,-500.0,0.00018995,2]
[405985552,1771500434055,-404.49473509,0.00018995,2]
[405985553,1771500434075,-500.0,0.00018995,2]
[405985554,1771500434096,-500.0,0.00018995,2]
[405985555,1771500434117,-500.0,0.00018995,2]
[405985556,1771500434138,-500.0,0.00018995,2]
[405985557,1771500434159,-500.0,0.00018995,2]
[405985558,1771500434179,-500.0,0.00018995,2]
[405985559,1771500434200,-500.0,0.00018995,2]
[405985560,1771500434221,-500.0,0.00018995,2]
[405985561,1771500434241,-500.0,0.00018995,2]
[405985562,1771500434262,-500.0,0.00018995,2]
[405985563,1771500434282,-500.0,0.00018995,2]
[405985564,1771500434303,-500.0,0.00018995,2]
[405985565,1771500434323,-500.0,0.00018995,2]
[405985566,1771500434344,-500.0,0.00018995,2]
[405985567,1771500434365,-500.0,0.00018995,2]
[405985568,1771500434386,-499.99999999,0.00018995,2]
[405985569,1771500434406,-199.99999999,0.00018995,2]
[405985570,1771500434425,-563.47601303,0.00018996,2]
[405985571,1771500434444,-500.0,0.00018996,2]
[405985572,1771500434463,-341.52200993,0.00018996,2]
[405985573,1771500434482,-458.45832785,0.00018997,2]
[405985574,1771500434500,-500.0,0.00018997,2]
[405985575,1771500434518,-523.81410912,0.00018997,2]
[405985576,1771500434537,-750.73,0.00018998,2]
[405985577,1771500434556,-750.73,0.00018998,2]
[405985578,1771500434574,-750.73,0.00018999,2]
[405985579,1771500434596,-750.73,0.00018999,2]
[405985580,1771500434615,-500.0,0.00018999,2]
[405985581,1771500434636,-377.70784865,0.00018999,2]
[405985582,1771500434655,-500.0,0.00018999,2]
[405985583,1771500434676,-40017.0,0.00019,2]
[405985584,1771500434696,-500.0,0.0001927,2]
[405985585,1771500434715,-250.0,0.00019333,2]
[405985586,1771500434736,-500.0,0.00019333,2]
[405985587,1771500434757,-187.78006525,0.00019333,2]
[405985588,1771500434778,-500.0,0.00019333,2]
[405985589,1771500434798,-194.72792766,0.00019333,2]
[405985590,1771500434819,-500.0,0.00019333,2]
[405985591,1771500434849,-201.93286099,0.00019333,2]
[405985592,1771500434962,-500.0,0.00019333,2]
[405985593,1771500434981,-750.0,0.00019333,2]
[405985594,1771500435002,-209.40437684,0.00019333,2]
[405985595,1771500435033,-500.0,0.00019333,2]
[405985596,1771500435053,-750.0,0.00019333,2]
[405985597,1771500435074,-217.15233878,0.00019333,2]
[405985598,1771500435093,-250.0,0.00019333,2]
[405985599,1771500435112,-500.0,0.00019333,2]
[405985600,1771500435131,-760.82039511,0.00019333,2]
[405985601,1771500435152,-211.70808733,0.00019333,2]
[405985602,1771500435171,-500.0,0.00019333,2]
[405985603,1771500435190,-500.0,0.00019333,2]
[405985604,1771500435210,-500.0,0.00019333,2]
[405985605,1771500435231,-273.32182778,0.00019333,2]
[405985606,1771500435251,-500.0,0.00019333,2]
[405985607,1771500435270,-500.0,0.00019333,2]
[405985608,1771500435289,-500.0,0.00019333,2]
[405985609,1771500435308,-500.0,0.00019333,2]
[405985610,1771500435327,-500.0,0.00019333,2]
[405985611,1771500435346,-250.0,0.00019333,2]
[405985612,1771500435365,-250.0,0.00019333,2]
[405985613,1771500435383,-250.0,0.00019333,2]
[405985614,1771500435403,-250.0,0.00019333,2]
[405985615,1771500435422,-250.0,0.00019333,2]
[405985616,1771500435441,-250.0,0.00019333,2]
[405985617,1771500435461,-250.0,0.00019333,2]
[405985618,1771500435481,-250.0,0.00019333,2]
[405985619,1771500435500,-220.80658013,0.00019333,2]
[405985620,1771500435519,-250.0,0.00019333,2]
[405985621,1771500435539,-395.30325577,0.00019333,2]
[405985622,1771500435558,-250.0,0.00019333,2]
[405985623,1771500435578,-276.10045185,0.0001949,7]
[405985624,1771500435603,-1288.6759295,0.00019544,2]
[405985625,1771500435623,-506.09268072,0.00019544,2]
[405985626,1771500435644,-180.47725894,0.0001962,2]
[405985627,1771500435663,-300.0,0.00019623,2]
[405985628,1771500435686,-305.0,0.00019623,2]
[405985629,1771500435705,-300.0,0.00019623,2]
[405985630,1771500435726,-420.0,0.00019623,2]
[405985631,1771500435747,-615.27559571,0.0001988,2]
[405985632,1771500435766,-350.0,0.00019997,2]
[405985633,1771500435786,-630.0,0.00019997,2]
[405985634,1771500435805,-350.0,0.00019997,2]
[405985635,1771500435824,-630.0,0.00019997,2]
[405985636,1771500435844,-350.0,0.00019997,2]
[405985637,1771500435863,-630.0,0.00019997,2]
[405985638,1771500435882,-630.0,0.00019997,2]
[405985639,1771500435902,-350.0,0.00019997,2]
[405985640,1771500435921,-630.0,0.00019997,2]
[405985641,1771500435940,-350.0,0.00019997,2]
[405985642,1771500435960,-630.0,0.00019997,2]
[405985643,1771500435980,-350.0,0.00019997,2]
[405985644,1771500435999,-630.0,0.00019997,2]
[405985645,1771500436018,-350.0,0.00019997,2]
[405985646,1771500436037,-630.0,0.00019997,2]
[405985647,1771500436056,-350.0,0.00019997,2]
[405985648,1771500436076,-630.0,0.00019997,2]
[405985649,1771500436095,-350.0,0.00019997,2]
[405985650,1771500436114,-630.0,0.00019997,2]
[405985651,1771500436133,-350.0,0.00019997,2]
[405985652,1771500436153,-630.0,0.00019997,2]
[405985653,1771500436173,-350.0,0.00019997,2]
[405985654,1771500436192,-630.0,0.00019997,2]
[405985655,1771500436212,-350.0,0.00019997,2]
[405985656,1771500436233,-630.0,0.00019997,2]
[405985657,1771500436253,-350.0,0.00019997,2]
[405985658,1771500436274,-337.0,0.00019997,2]
[405985659,1771500436295,-630.0,0.00019997,2]
[405985660,1771500436315,-630.0,0.00019997,2]
[405985661,1771500436335,-350.0,0.00019997,2]
[405985662,1771500436355,-521.24472775,0.00019997,2]
[405985663,1771500436374,-337.0,0.00019997,2]
[405985664,1771500436394,-630.0,0.00019997,2]
[405985665,1771500436418,-337.0,0.00019997,2]
[405985666,1771500436438,-350.0,0.00019997,2]
[405985667,1771500436459,-630.0,0.00019997,2]
[405985668,1771500436479,-337.0,0.00019997,2]
[405985669,1771500436498,-350.0,0.00019997,2]
[405985670,1771500436518,-630.0,0.00019997,2]
[405985671,1771500436537,-337.0,0.00019997,2]
[405985672,1771500436556,-350.0,0.00019997,2]
[405985673,1771500436576,-630.0,0.00019997,2]
[405985674,1771500436599,-337.0,0.00019997,2]
[405985675,1771500436618,-350.0,0.00019997,2]
[405985676,1771500436638,-630.0,0.00019997,2]
[405985677,1771500436658,-337.0,0.00019997,2]
[405985678,1771500436679,-350.0,0.00019997,2]
[405985679,1771500436699,-630.0,0.00019997,2]
[405985680,1771500436720,-337.0,0.00019997,2]
[405985681,1771500436739,-630.0,0.00019997,2]
[405985682,1771500436759,-337.0,0.00019997,2]
[405985683,1771500436778,-630.0,0.00019997,2]
[405985684,1771500436797,-630.0,0.00019997,2]
[405985685,1771500436818,-337.0,0.00019997,2]
[405985686,1771500436837,-630.0,0.00019997,2]
[405985687,1771500436859,-337.0,0.00019997,2]
[405985688,1771500436878,-350.0,0.00019997,2]
[405985689,1771500436898,-630.0,0.00019997,2]
[405985690,1771500436917,-337.0,0.00019997,2]
[405985691,1771500436937,-350.0,0.00019997,2]
[405985692,1771500436957,-630.0,0.00019997,2]
[405985693,1771500436977,-337.0,0.00019997,2]
[405985694,1771500436996,-350.0,0.00019997,2]
[405985695,1771500437016,-630.0,0.00019997,2]
[405985696,1771500437036,-337.0,0.00019997,2]
[405985697,1771500437058,-350.0,0.00019997,2]
[405985698,1771500437078,-630.0,0.00019997,2]
[405985699,1771500437098,-337.0,0.00019997,2]
[405985700,1771500437117,-350.0,0.00019997,2]
[405985701,1771500437138,-337.0,0.00019997,2]
[405985702,1771500437158,-350.0,0.00019997,2]
[405985703,1771500437267,-196.02952806,0.00019997,2]
[405985704,1771500437288,-337.0,0.00019997,2]
[405985705,1771500437308,-350.0,0.00019997,2]
[405985706,1771500437329,-350.0,0.00019997,2]
[405985707,1771500437350,-337.0,0.00019997,2]
[405985708,1771500437371,-350.0,0.00019997,2]
[405985709,1771500437391,-337.0,0.00019997,2]
[405985710,1771500437410,-337.0,0.00019997,2]
[405985711,1771500437430,-350.0,0.00019997,2]
[405985712,1771500437450,-350.0,0.00019997,2]
[405985713,1771500437469,-337.0,0.00019997,2]
[405985714,1771500437489,-337.0,0.00019997,2]
[405985715,1771500437508,-350.0,0.00019997,2]
[405985716,1771500437527,-350.0,0.00019997,2]
[405985717,1771500437547,-337.0,0.00019997,2]
[405985718,1771500437567,-350.0,0.00019997,2]
[405985719,1771500437586,-337.0,0.00019997,2]
[405985720,1771500437609,-350.0,0.00019997,2]
[405985721,1771500437629,-337.0,0.00019997,2]
[405985722,1771500437649,-337.0,0.00019997,2]
[405985723,1771500437670,-482.41172793,0.00019997,2]
[405985724,1771500437691,-350.0,0.00019997,2]